[Event "EIBCC 2024"]
[Site "Skopje"]
[Date "2024.12.09"]
[Round "3.16"]
[White "Kilic, Eray"]
[Black "Kazakouski, Valery"]
[Result "0-1"]
[Annotator "TA"]
[ECO "B13"]
[WhiteElo "2459"]
[BlackElo "2567"]
[PlyCount "94"]
[EventDate "2024.12.07"]
[EventCountry "MKD"]
[SourceTitle "playchess.com"]
[Source "ChessBase"]
[SourceQuality "1"]
[TimeControl "180+2"]

{[%evp 15,94,-35,0,0,38,-37,-17,-68,0,0,0,0,10,-13,-20,-69,-88,-70,-66,-118,-95,-119,-69,-114,-125,-157,-150,-147,-103,-103,-98,-106,-98,-138,-127,-199,-172,-161,-102,-194,-196,-237,-235,-264,-256,-388,-382,-377,-314,-322,-321,-390,-302,-293,-218,-388,-384,-356,-343,-645,-612,-709,-716,-753,-547,-649,-653,-544,-443,-618,-555,-561,-555,-547,-527,-516,-507,-484,-420,-741,-741]} 1. d4 {[%emt 0:00:02]} Nf6 {[%emt 0:00:02]} 2. Nc3 {[%emt 0:00:01]} d5 {[%emt 0:00:02]} 3. Bf4 {[%emt 0:00:01]} c5 {[%emt 0:00:01]} 4. e3 {[%emt 0:00:02]} cxd4 {[%emt 0:00:04]} 5. exd4 {[%emt 0:00:01]} a6 {[%emt 0:00:01]} 6. Nf3 {[%emt 0:00:01] B13: Caro-Kann: Exchange Variation and Panov-Botvinnik Attack.} Nc6 {[%emt 0:00:01]} 7. Ne5 {[%emt 0:00:02]} e6 {[%emt 0:00:01]} 8. g4 {[%emt 0:00:01]} Bd6 $146 {[%emt 0:00:07]} ({Predecessor:} 8... Be7 9. g5 Nd7 10. Nf3 Nf8 11. h4 Ng6 12. Be3 Bd6 13. Qd2 Nge7 14. Bd3 Bd7 {1-0 Niemann,H (2660)-Filgueiras,N (2343) Titled Tuesday intern op 29th Aug Early blitz 2023 (3)}) 9. g5 {[%emt 0:00:09]} Bxe5 {[%emt 0:00:03]} 10. dxe5 {[%emt 0:00:06]} (10. Bxe5 $14 Nxe5 11. gxf6) 10... Nd7 $15 {[%emt 0:00:04]} 11. Qe2 {[%emt 0:00:20]} (11. Qd2 $1 $11) 11... d4 {[%emt 0:00:19]} (11... O-O $15 12. Bg2 Qa5) 12. Ne4 $11 {[%emt 0:00:10]} Ndxe5 {[%emt 0:00:05]} 13. O-O-O {[%emt 0:00:03]} O-O {[%emt 0:00:03]} 14. Bg2 {[%emt 0:00:20]} d3 {[%emt 0:00:01]} 15. cxd3 {[%emt 0:00:05]} (15. Qd2 $11 {is superior.}) 15... Ng6 $15 {[%emt 0:00:17]} 16. Bd6 {[%emt 0:00:13]} Re8 {[%emt 0:00:01]} 17. Kb1 {[%emt 0:00:15]} ({Better is} 17. d4 $15) 17... e5 $17 {[%emt 0:00:02]} 18. Qe3 {[%emt 0:00:07]} Bg4 {[%emt 0:00:04]} (18... Nd4 $17 {...Bg4 would now be deadly.} 19. Bh3 Bxh3 20. Qxh3 b6) 19. Rc1 {[%emt 0:00:06]} Nf4 {[%emt 0:00:07]} 20. Bf1 {[%emt 0:00:12]} Bf5 {[%emt 0:00:04]} 21. Bc5 {[%emt 0:00:13]} Bxe4 {[%emt 0:00:10]} 22. dxe4 {[%emt 0:00:02]} Qxg5 {[%emt 0:00:04]} 23. Bc4 {[%emt 0:00:02]} Rad8 {[%emt 0:00:11]} 24. Rhg1 {[%emt 0:00:04]} Qf6 {[%emt 0:00:00]} 25. Rg3 {[%emt 0:00:11]} (25. Bb6 $17 Rd6 26. a4) 25... Na5 {[%emt 0:00:17]} 26. Bf1 {[%emt 0:00:06]} ({Not} 26. Bb6 $2 Nxc4 27. Bxd8 Qe6 $19 (27... Rxd8 28. Rxc4 Rd1+ 29. Rc1 $11)) 26... Rc8 {[%emt 0:00:06]} (26... Rd7 $19 27. Bb6 Nc6) 27. Bb4 {[%emt 0:00:14]} (27. Qd2 $17 Nc6 28. Qd7) 27... Rxc1+ $19 {[%emt 0:00:02]} 28. Kxc1 {[%emt 0:00:06]} Nc6 {[%emt 0:00:04]} 29. Bc3 {[%emt 0:00:01]} Rd8 {[%emt 0:00:04]} 30. Bc4 {[%emt 0:00:06]} (30. h3 $142) 30... b5 $19 {[%emt 0:00:01]} 31. Bd5 {[%emt 0:00:02]} Nxd5 {[%emt 0:00:13]} 32. exd5 {[%emt 0:00:01]} Rxd5 {[%emt 0:00:02]} 33. Qe4 {[%emt 0:00:05]} Qe6 {[%emt 0:00:24]} 34. a3 {[%emt 0:00:05]} a5 {[%emt 0:00:05]} 35. b4 $2 {[%emt 0:00:16]} (35. Rd3 Rxd3 36. Qxd3) 35... axb4 {[%emt 0:00:01]} 36. axb4 {[%emt 0:00:01]} f5 {[%emt 0:00:10]} 37. Qg2 $2 {[%emt 0:00:10]} (37. Qc2) 37... g6 {[%emt 0:00:05]} 38. h4 {[%emt 0:00:02]} Nd4 {[%emt 0:00:04]} 39. Kb2 {[%emt 0:00:08]} Ne2 {[%emt 0:00:04]} 40. Re3 {[%emt 0:00:01]} Nxc3 {[%emt 0:00:04]} 41. Rxc3 {[%emt 0:00:01]} e4 {[%emt 0:00:04]} 42. Qg5 {[%emt 0:00:02]} Qe5 {[%emt 0:00:06]} 43. Kc2 {[%emt 0:00:01]} Qd4 {[%emt 0:00:10]} 44. Rc8+ {[%emt 0:00:09]} Kf7 {[%emt 0:00:00]} 45. Rc7+ {[%emt 0:00:01]} Rd7 {[%emt 0:00:01]} 46. Rxd7+ {[%emt 0:00:03]} Qxd7 {[%emt 0:00:01]} 47. Qh6 {[%emt 0:00:00]} (47. Qe3 $142) 47... Qd3+ {[%emt 0:00:03]} 0-1

[Event "EIBCC 2024"]
[Site "Skopje"]
[Date "2024.12.09"]
[Round "3.17"]
[White "Van Foreest, Lucas"]
[Black "Gatineau, Yovann"]
[Result "1-0"]
[Annotator "TA"]
[ECO "C09"]
[WhiteElo "2520"]
[BlackElo "2363"]
[PlyCount "99"]
[EventDate "2024.12.07"]
[EventCountry "MKD"]
[SourceTitle "playchess.com"]
[Source "ChessBase"]
[SourceQuality "1"]
[TimeControl "180+2"]

{[%evp 11,99,17,19,15,81,20,18,11,22,27,24,15,28,14,20,0,0,0,0,-16,0,0,0,0,0,-16,0,0,0,0,0,-28,-21,-37,0,0,0,0,0,0,0,-4,-3,-7,0,0,0,0,0,0,0,0,0,0,0,0,0,0,0,0,0,0,0,0,0,0,0,0,0,0,74,68,126,115,115,0,116,117,650,650,650,622,12536,629,622,607,607,540,29961,29960]} 1. e4 {[%emt 0:00:01]} e6 {[%emt 0:00:00]} 2. d4 {[%emt 0:00:01]} d5 {[%emt 0:00:01]} 3. Nd2 {[%emt 0:00:01]} c5 {[%emt 0:00:01]} 4. exd5 {[%emt 0:00:01]} exd5 {[%emt 0:00:01]} 5. Ngf3 {[%emt 0:00:02]} cxd4 {[%emt 0:00:01]} 6. Bb5+ {[%emt 0:00:02]} Nc6 {[%emt 0:00:07]} 7. O-O {[%emt 0:00:03]} Nf6 {[%emt 0:00:02]} (7... Bd6 $11) 8. Nxd4 {[%emt 0:00:09]} (8. Re1+ $16 Be7 9. Qe2 (9. Nxd4 Bd7 $11)) 8... Bd7 $11 {[%emt 0:00:01]} 9. N2f3 {[%emt 0:00:06] The position is equal.} Be7 {[%emt 0:00:02]} 10. c3 {[%emt 0:00:01]} O-O {[%emt 0:00:02]} 11. h3 {[%emt 0:00:02]} Re8 {[%emt 0:00:03]} 12. Bd3 {[%emt 0:00:03]} h6 {[%emt 0:00:06]} 13. Nxc6 {[%emt 0:00:06]} bxc6 {[%emt 0:00:04]} 14. Ne5 {[%emt 0:00:02]} Bd6 {[%emt 0:00:11]} 15. Nxd7 {[%emt 0:00:02]} Qxd7 {[%emt 0:00:01]} 16. Qf3 {[%emt 0:00:02][%cal Oc1h6]} Ne4 {[%emt 0:00:14]} 17. Be3 {[%emt 0:00:09]} Re6 {[%emt 0:00:06]} 18. Rad1 {[%emt 0:00:08]} Rae8 {[%emt 0:00:03]} (18... Rb8 {simplifies} 19. Bxe4 Rxe4 20. b3 Qe6) 19. c4 {[%emt 0:00:32]} Rf6 {[%emt 0:00:31]} 20. Qg4 {[%emt 0:00:17]} Qb7 {[%emt 0:00:10]} 21. Bd4 {[%emt 0:00:20]} Rg6 {[%emt 0:00:16]} 22. Qh4 {[%emt 0:00:10]} Be7 {[%emt 0:00:45]} 23. Qh5 {[%emt 0:00:02]} Bf6 {[%emt 0:00:07]} 24. Bxf6 {[%emt 0:00:09]} Rxf6 {[%emt 0:00:05]} 25. cxd5 {[%emt 0:00:14]} cxd5 {[%emt 0:00:01]} 26. Bxe4 {[%emt 0:00:23]} dxe4 {[%emt 0:00:01]} (26... Rxe4 {simplifies} 27. Qxd5 Qxd5 28. Rxd5 Re2) 27. b3 {[%emt 0:00:00]} Qb6 {[%emt 0:00:15]} 28. Qd5 {[%emt 0:00:02]} e3 {[%emt 0:00:11]} 29. fxe3 {[%emt 0:00:01]} Qxe3+ {[%emt 0:00:01]} 30. Kh1 {[%emt 0:00:01]} Rxf1+ {[%emt 0:00:17]} 31. Rxf1 {[%emt 0:00:01][%mdl 4096] Endgame. KQR-KQR} Qe6 {[%emt 0:00:02]} 32. Qc5 {[%emt 0:00:08]} a6 {[%emt 0:00:03]} 33. Qd4 {[%emt 0:00:05]} Rc8 {[%emt 0:00:04]} 34. Qd3 {[%emt 0:00:05]} g6 {[%emt 0:00:03]} 35. a3 {[%emt 0:00:01]} Rc5 {[%emt 0:00:05]} 36. b4 {[%emt 0:00:01]} Rd5 {[%emt 0:00:03]} 37. Qc3 {[%emt 0:00:01]} h5 {[%emt 0:00:03]} 38. Re1 {[%emt 0:00:01]} Qd7 {[%emt 0:00:02]} 39. Qf3 {[%emt 0:00:04]} Rf5 {[%emt 0:00:02]} 40. Qa8+ {[%emt 0:00:02]} Kg7 {[%emt 0:00:01]} (40... Kh7 $1 $11 {remains equal.}) 41. Qxa6 $16 {[%emt 0:00:02] White is more active.} Qd2 {[%emt 0:00:04]} ({Black should try} 41... Rf3 $14) 42. Qe2 $36 {[%emt 0:00:02][%mdl 2048] Black is under strong pressure.} Qc3 {[%emt 0:00:01] [#]} 43. b5 {[%emt 0:00:23]} ({Only move:} 43. Rb1 $1 $16 {Qb2 is the strong threat.} Qxa3 44. b5) 43... Qxa3 {[%emt 0:00:01]} (43... Rxb5 $1 $11 44. Qxb5 Qxe1+ 45. Kh2 Qc3) 44. Rb1 {[%emt 0:00:00] Black must now prevent b6.} Qd6 {[%emt 0:00:06][%mdl 8192] This move loses the game for Black.} (44... Rc5 $16) 45. b6 $18 {[%emt 0:00:02]} Re5 {[%emt 0:00:03]} 46. Qb2 {[%emt 0:00:01]} Qb8 {[%emt 0:00:02]} 47. b7 {[%emt 0:00:01]} (47. Re1 $142 Qxb6 48. Qxe5+ (48. Qxb6 Rxe1+ 49. Kh2 Re7 $18) 48... Qf6 49. Qxf6+ Kxf6 50. Kg1) 47... f6 {[%emt 0:00:00]} 48. Qc3 {[%emt 0:00:26]} Re8 {[%emt 0:00:03] Wards off Qc8} 49. Qc6 {[%emt 0:00:00][%cal Oc6e8] White wants to mate with Qxe8!} Qe5 {[%emt 0:00:02] [#]} 50. Qxe8 $3 {[%emt 0:00:00][%mdl 512] Weighted Error Value: White=0.21 (precise) /Black=0.38.  Loses game:     	---       	Black=1      Mistake:       	White=2     	Black=4      Inaccurate:     	White=1     	Black=1      OK:         	White=20    	Black=13     Best:        	White=3     	Black=2} 1-0

[Event "EIBCC 2024"]
[Site "Skopje"]
[Date "2024.12.09"]
[Round "3.18"]
[White "Asllani, Muhamet"]
[Black "Fridman, Daniel"]
[Result "0-1"]
[Annotator "TA"]
[ECO "D44"]
[WhiteElo "2112"]
[BlackElo "2571"]
[PlyCount "62"]
[EventDate "2024.12.07"]
[EventCountry "MKD"]
[SourceTitle "playchess.com"]
[Source "ChessBase"]
[SourceQuality "1"]
[TimeControl "180+2"]

{[%evp 11,62,0,40,45,39,-26,0,0,0,-65,-52,-58,-60,-146,-140,-141,-139,-145,-131,-133,-100,-92,-85,-149,-155,-184,-164,-162,-102,-150,-89,-97,-89,-93,-73,-130,-121,-124,-118,-195,-168,-215,-214,-219,-100,-90,-53,-201,-200,-285,-178,-886,-851]} 1. d4 {[%emt 0:00:02]} d5 {[%emt 0:00:01]} 2. Nf3 {[%emt 0:00:02]} Nf6 {[%emt 0:00:01]} 3. c4 {[%emt 0:00:01]} e6 {[%emt 0:00:01]} 4. Nc3 {[%emt 0:00:01]} c6 {[%emt 0:00:00]} 5. Bg5 {[%emt 0:00:02]} dxc4 {[%emt 0:00:02]} 6. a4 {[%emt 0:00:05]} b5 {[%emt 0:00:02]} 7. axb5 {[%emt 0:00:27]} cxb5 {[%emt 0:00:01]} 8. Bxf6 {[%emt 0:00:08]} (8. Nxb5 $14 Qb6 9. Na3) 8... gxf6 $11 {[%emt 0:00:03]} 9. Nxb5 {[%emt 0:00:05][%cal Oe2e4] The position is equal.} Qb6 $1 {[%emt 0:00:02]} 10. Nc3 {[%emt 0:00:43]} (10. Na3 $1 $11) 10... Qxb2 $15 {[%emt 0:00:07]} 11. Rc1 $1 {[%emt 0:00:14]} Bb4 {[%emt 0:00:07]} 12. Qc2 {[%emt 0:00:24]} (12. Qd2 $15 Qxd2+ 13. Nxd2) 12... Qxc2 $17 {[%emt 0:00:12]} 13. Rxc2 {[%emt 0:00:01]} Nd7 {[%emt 0:00:19]} 14. e3 {[%emt 0:00:05]} Nb6 {[%emt 0:00:01] White must now prevent ...Na4.} 15. Nd2 {[%emt 0:00:05]} Bb7 {[%emt 0:00:04]} 16. f3 {[%emt 0:00:28]} Nd5 {[%emt 0:00:07]} 17. Nxd5 {[%emt 0:00:09]} (17. Na2 $142) 17... exd5 {[%emt 0:00:02]} (17... Bxd5 $6 18. Bxc4 Rc8 19. Ke2 $11) 18. Kf2 {[%emt 0:00:06] White is weak on the dark squares} a5 {[%emt 0:00:07]} 19. e4 {[%emt 0:00:13] [#]} c3 {[%emt 0:00:07]} ({Better is} 19... O-O $1 $19 {[%cal Of6f5]} 20. exd5 Bxd2 (20... Bxd5 21. Ne4 $15) 21. Rxd2 Bxd5) 20. Bb5+ {[%emt 0:00:04]} (20. Nb1 $142) 20... Kf8 {[%emt 0:00:09]} (20... Ke7 $142 21. exd5 Rhd8 (21... cxd2 22. Rc7+ Kf8 23. Rxb7 $17)) 21. Nb1 {[%emt 0:00:03]} dxe4 {[%emt 0:00:06]} 22. Nxc3 {[%emt 0:00:02]} f5 {[%emt 0:00:31]} 23. Rd1 {[%emt 0:00:08]} ({White should try} 23. Bd7) 23... Rc8 $36 {[%emt 0:00:07][%mdl 2048] Keeping White busy.} 24. Rdc1 {[%emt 0:00:01]} Kg7 {[%emt 0:00:06]} 25. Na2 {[%emt 0:00:03]} (25. fxe4 $17 Rhd8 (25... fxe4 $2 26. Ke3 $17) (25... Bxe4 26. Nxe4 Rxc2+ 27. Rxc2 $15) 26. Nd5) 25... Bd6 {[%emt 0:00:12]} 26. Bd7 {[%emt 0:00:07]} (26. Rxc8 $142 Rxc8 27. Rxc8 Bxc8 28. Bc6) 26... Rxc2+ $19 {[%emt 0:00:08]} 27. Rxc2 {[%emt 0:00:01]} Kf6 {[%emt 0:00:10]} (27... Bxh2 28. Bxf5 exf3 29. gxf3) (27... f4 $19 {and Black stays clearly on top. Threatens to win with ...e3+.} 28. fxe4 Bxe4) 28. Rb2 $17 {[%emt 0:00:00]} Rb8 {[%emt 0:00:06]} 29. Nc3 {[%emt 0:00:02]} ({White has to play} 29. Rb6 $15) 29... Bb4 $19 {[%emt 0:00:03]} ({Don't take} 29... Bxh2 30. g3 e3+ (30... exf3 31. Rb6+ Kg5 32. Rb5 $11) 31. Kxe3 Bg1+ (31... Bxg3 32. Rb6+ Kg7 33. f4 $15) 32. Kd2 $17) 30. Na2 {[%emt 0:00:03]} (30. Ne2 $142) 30... Bd5 {[%emt 0:00:01] A strong pair of Bishops.} 31. Ba4 $2 {[%emt 0:00:03] [#]} (31. Nc3 Bc4 (31... Bxc3 32. Rxb8 Bxd4+ 33. Ke1 $15) 32. Ba4) 31... Be1+ $1 {[%emt 0:00:03][%mdl 512] Weighted Error Value: White=0.60/Black=0.22 (precise) .  Mistake:       	White=11    	Black=3      Inaccurate:     	---       	Black=3      OK:         	White=3     	Black=6      Best:        	White=5     	Black=3      Strong:       	White=1     	Black=1} 0-1

[Event "EIBCC 2024"]
[Site "Skopje"]
[Date "2024.12.09"]
[Round "3.19"]
[White "Quparadze, Giga"]
[Black "Popovic, Milos T"]
[Result "1-0"]
[Annotator "TA"]
[ECO "B30"]
[WhiteElo "2537"]
[BlackElo "2334"]
[PlyCount "123"]
[EventDate "2024.12.07"]
[EventCountry "MKD"]
[SourceTitle "playchess.com"]
[Source "ChessBase"]
[SourceQuality "1"]
[TimeControl "180+2"]

{[%evp 30,123,0,0,0,0,0,-6,0,0,0,0,0,-24,-32,-81,-77,-81,-71,-110,-20,-111,-105,-128,-136,-123,-82,-141,-57,-88,-42,-264,-144,-279,-278,-254,-150,-148,-120,-133,-118,-131,-135,-201,-131,-205,-217,-236,-190,-313,-313,-312,-280,-289,-264,-386,-379,-704,-443,-402,-280,-281,-281,-291,-266,-289,-279,-305,-298,-302,-297,-318,-184,-190,70,71,72,67,39,17,256,217,425,0,0,0,372,361,350,336,29977,29978,29978,29979,29979,29979]} 1. e4 {[%emt 0:00:01]} c5 {[%emt 0:00:01]} 2. Nf3 {[%emt 0:00:01]} Nc6 {[%emt 0:00:01]} 3. Bb5 {[%emt 0:00:02]} e5 {[%emt 0:00:00]} 4. O-O {[%emt 0:00:03]} Nge7 {[%emt 0:00:01]} 5. c3 {[%emt 0:00:01]} g6 {[%emt 0:00:01]} 6. d4 {[%emt 0:00:04]} cxd4 {[%emt 0:00:01]} 7. cxd4 {[%emt 0:00:01]} exd4 {[%emt 0:00:01]} 8. Nxd4 {[%emt 0:00:06]} Bg7 {[%emt 0:00:01]} 9. Be3 {[%emt 0:00:14]} O-O {[%emt 0:00:02]} 10. Nc3 {[%emt 0:00:02]} d5 {[%emt 0:00:00]} 11. exd5 {[%emt 0:00:07] B30: Sicilian: 2...Nc6 3 Bb5, lines without ...g6.} Nxd5 {[%emt 0:00:02]} 12. Nxc6 {[%emt 0:00:05]} bxc6 {[%emt 0:00:01]} 13. Bxc6 {[%emt 0:00:02]} Nxe3 {[%emt 0:00:02]} 14. fxe3 {[%emt 0:00:02]} Rb8 {[%emt 0:00:02]} 15. Qxd8 {[%emt 0:00:22]} Rxd8 {[%emt 0:00:01]} 16. Bd5 {[%emt 0:00:03]} Be6 {[%emt 0:00:01]} 17. Bxe6 {[%emt 0:00:14]} fxe6 {[%emt 0:00:01]} 18. Rab1 $146 {[%emt 0:00:02]} ({Predecessor:} 18. Kf2 Rxb2+ {½-½ Houska,J (2404)-Silva Lillo,S (2369) FRA-chT1A 0708 2007 (1.3)}) 18... Rd2 {[%emt 0:00:02]} 19. Na4 {[%emt 0:00:05]} Rb4 {[%emt 0:01:29]} 20. b3 {[%emt 0:00:01]} Bh6 {[%emt 0:00:14]} 21. Rbe1 {[%emt 0:00:33]} Rxa2 {[%emt 0:00:24]} 22. Nc5 {[%emt 0:00:05]} (22. Rf2 $15 Rxf2 23. Kxf2) 22... Rb5 $17 {[%emt 0:00:09]} 23. Nxe6 {[%emt 0:00:23]} Rxb3 {[%emt 0:00:01]} 24. Rd1 {[%emt 0:00:05]} Rb8 {[%emt 0:00:26]} (24... Bxe3+ $17 25. Kh1 Rf2) 25. e4 {[%emt 0:00:08]} (25. Rd3 $11 {remains equal.}) 25... Re2 {[%emt 0:00:05]} 26. Kh1 {[%emt 0:00:16]} Rxe4 {[%emt 0:00:02]} 27. Nc5 {[%emt 0:00:01]} Rf4 {[%emt 0:00:04]} 28. Rfe1 {[%emt 0:00:02]} (28. Rxf4 $142 Bxf4 29. g3) 28... Bf8 {[%emt 0:00:06]} (28... a5 $17 29. g3 Rf5) 29. Ne6 {[%emt 0:00:04]} Rf7 {[%emt 0:00:03]} (29... Ra4 $17) 30. Nd4 $2 {[%emt 0:00:03]} ({White should try} 30. Nxf8 $15 Rbxf8 (30... Kxf8 31. Ra1 $11) 31. g4) 30... Rd8 {[%emt 0:00:02]} (30... a5 $19 {Strongly threatening ...a4.} 31. g3 a4) 31. Nc6 {[%emt 0:00:04]} (31. Ne6 $17 {was necessary.} Rxd1 32. Rxd1) 31... Rxd1 $19 {[%emt 0:00:01]} 32. Rxd1 {[%emt 0:00:01]} Bc5 {[%emt 0:00:02]} (32... Rc7 $19 33. Ne5 a5) 33. g3 {[%emt 0:00:02]} Kg7 {[%emt 0:00:01]} 34. Nd8 {[%emt 0:00:02]} Re7 {[%emt 0:00:02]} 35. Nc6 {[%emt 0:00:01]} Rc7 {[%emt 0:00:01]} 36. Ne5 {[%emt 0:00:02]} (36. Nb8 $17 {was worth a try.}) 36... Bb6 {[%emt 0:00:02]} 37. Nf3 {[%emt 0:00:04]} (37. Nd7 $17 {is a better defense.}) 37... a5 $19 {[%emt 0:00:01]} 38. Ng5 {[%emt 0:00:02]} Ra7 {[%emt 0:00:01]} 39. Ne6+ {[%emt 0:00:02]} (39. Rf1 $142) 39... Kf6 $19 {[%emt 0:00:01]} 40. Nf4 {[%emt 0:00:00]} Bc5 {[%emt 0:00:10]} 41. Rc1 {[%emt 0:00:02]} Bb4 {[%emt 0:00:04]} 42. Nd5+ {[%emt 0:00:05]} (42. Kg2 $142) 42... Ke5 $19 {[%emt 0:00:01]} 43. Ne3 $2 {[%emt 0:00:04]} (43. Nf4) 43... Ke4 {[%emt 0:00:01]} 44. Nc4 {[%emt 0:00:02]} Kd3 {[%emt 0:00:01]} 45. Nb2+ {[%emt 0:00:04]} Kd2 {[%emt 0:00:01]} 46. Rc4 {[%emt 0:00:01]} Rd7 {[%emt 0:00:17]} 47. Na4 {[%emt 0:00:02]} Kd3 {[%emt 0:00:02]} 48. Rc6 {[%emt 0:00:01]} Ke4 {[%emt 0:00:03]} 49. Kg2 {[%emt 0:00:04]} Rd2+ {[%emt 0:00:01]} 50. Kh3 {[%emt 0:00:01]} Ra2 {[%emt 0:00:01]} (50... Kf5 $142 51. Rb6 Ra2 52. Rb5+ Ke4) 51. Nb6 {[%emt 0:00:01]} a4 $2 {[%emt 0:00:02]} (51... Kd3 $19 {White must now prevent ...Rc2.} 52. Rc7 h5) 52. Rc4+ $14 {[%emt 0:00:01]} Kd3 {[%emt 0:00:06]} 53. Rxb4 {[%emt 0:00:01]} a3 {[%emt 0:00:00]} 54. Rb3+ {[%emt 0:00:05]} Kc2 $2 {[%emt 0:00:01]} (54... Kd4 $11 {and Black is okay.}) 55. Rf3 {[%emt 0:00:01]} Rb2 $2 {[%emt 0:00:04] [#]} (55... Ra1 56. Na4 h5) 56. Rf2+ $2 {[%emt 0:00:13]} (56. Nc4 $1 $18) 56... Kd3 {[%emt 0:00:08]} 57. Rf3+ {[%emt 0:00:05]} Ke4 $2 {[%emt 0:00:03][%mdl 8192]} (57... Kc2 $11) 58. Rf4+ $18 {[%emt 0:00:02]} ({Weaker is} 58. Rxa3 Rxb6 59. Ra4+ Kf5 $11) 58... Kd3 {[%emt 0:00:02] [#]} 59. Nc4 $1 {[%emt 0:00:01]} a2 $2 {[%emt 0:00:08]} (59... Ra2 $18 60. Nxa3 g5 61. Rf3+ Ke4) 60. Nxb2+ {[%emt 0:00:01]} Kc2 {[%emt 0:00:01]} 61. Ra4 {[%emt 0:00:02]} Kxb2 {[%emt 0:00:01]} 62. Kg4 {[%emt 0:00:00]} 1-0

[Event "EIBCC 2024"]
[Site "Skopje"]
[Date "2024.12.09"]
[Round "3.20"]
[White "Mastrovasilis, Dimitrios"]
[Black "Perunovic, Miodrag"]
[Result "1-0"]
[Annotator "TA"]
[ECO "C47"]
[WhiteElo "2537"]
[BlackElo "2357"]
[PlyCount "33"]
[EventDate "2024.12.07"]
[EventCountry "MKD"]
[SourceTitle "playchess.com"]
[Source "ChessBase"]
[SourceQuality "1"]
[TimeControl "180+2"]

{[%evp 11,33,36,39,0,9,0,25,8,0,0,0,0,11,0,0,0,0,0,159,160,261,252,29998,29999]} 1. e4 {[%emt 0:00:03]} e5 {[%emt 0:00:02]} 2. Nf3 {[%emt 0:00:03]} Nc6 {[%emt 0:00:01]} 3. Nc3 {[%emt 0:00:02]} Nf6 {[%emt 0:00:01]} 4. d4 {[%emt 0:00:01]} exd4 {[%emt 0:00:02]} 5. Nxd4 {[%emt 0:00:02]} Nxe4 {[%emt 0:00:01]} 6. Nxe4 {[%emt 0:00:10]} Qe7 $1 {[%emt 0:00:02]} 7. Bd3 {[%emt 0:00:23]} Nxd4 {[%emt 0:00:04]} 8. O-O $1 {[%emt 0:00:02]} d5 {[%emt 0:00:07] [#]} 9. Bc4 $1 {[%emt 0:00:07] White has an edge.} dxc4 {[%emt 0:00:53]} (9... Qxe4 $2 {loses.} 10. Re1 $18) ({Reject} 9... Qe5 $6 10. Nc3 Be6 (10... dxc4 11. Re1 $16) 11. Re1 $16) (9... Be6 10. Bg5) 10. Qxd4 {[%emt 0:00:03][%cal Oc1g5] Black must now prevent Bg5!} Be6 {[%emt 0:00:10]} 11. Bg5 {[%emt 0:00:22]} Qd7 {[%emt 0:00:02]} 12. Qc3 {[%emt 0:00:14][%mdl 1024] Hoping for Rad1. White has compensation.} h6 {[%emt 0:00:34]} 13. Bh4 {[%emt 0:00:14] Rad1 is the strong threat.} f5 {[%emt 0:00:16]} 14. Rad1 $36 {[%emt 0:00:19][%mdl 2048] White fights for an advantage.} Qf7 {[%emt 0:00:30] [#]} (14... Qc6 $11 15. Ng3 Kf7) 15. Qd4 $1 $16 {[%emt 0:00:15] White is much more active. The black rooks are passive.} Be7 {[%emt 0:00:06] [#] Repels Qd8+} ({Not} 15... fxe4 16. Qd8+ Rxd8 17. Rxd8#) (15... Qd7 $16 16. Qe3 Bd6) 16. Nc5 $1 $18 {[%emt 0:00:36]} Bxc5 {[%emt 0:00:08] [#]} (16... O-O $18) 17. Qd8+ $3 {[%emt 0:00:07][%mdl 512] Weighted Error Value: White=0.05 (flawless) /Black=0.85.  Mistake:       	---       	Black=3      OK:         	White=3     	Black=5      Best:        	White=1     	Black=1      Strong:       	White=3     	---        Brilliant:      	White=1     	---} 1-0